[Event "Championnat d'Europe Rapide"]
[Date "2024.12.07"]
[White "Bogdanovic, Vesna"]
[Black "Guliyev, Namig"]
[WhiteElo "2008"]
[BlackElo "2484"]
[Round "1.44"]
[Result "0-1"]
[TimeControl "900+10"]

1. e4 {[%emt 00:00:41] [%clk 00:14:38]} c5 {[%emt 00:00:04] [%clk 00:15:17]} 2.
Nc3 {[%emt 00:00:05] [%clk 00:14:43]} d6 {[%emt 00:00:06] [%clk 00:15:21]} 3. g3
{[%emt 00:00:04] [%clk 00:14:49]} Nc6 {[%emt 00:00:04] [%clk 00:15:27]} 4. Bg2
{[%emt 00:00:07] [%clk 00:14:52]} g6 {[%emt 00:00:05] [%clk 00:15:33]} 5. f4
{[%emt 00:00:11] [%clk 00:14:51]} Bg7 {[%emt 00:00:03] [%clk 00:15:40]} 6. Nf3
{[%emt 00:00:07] [%clk 00:14:54]} e6 {[%emt 00:00:05] [%clk 00:15:45]} 7. d3
{[%emt 00:00:07] [%clk 00:14:57]} Nge7 {[%emt 00:00:03] [%clk 00:15:51]} 8. O-O
{[%emt 00:00:15] [%clk 00:14:53]} b6 {[%emt 00:00:03] [%clk 00:15:59]} 9. Ne2
{[%emt 00:00:10] [%clk 00:14:53]} f5 {[%emt 00:00:21] [%clk 00:15:48]} 10. c3
{[%emt 00:00:27] [%clk 00:14:36]} Qd7 {[%emt 00:02:39] [%clk 00:13:19]} 11. Be3
{[%emt 00:02:58] [%clk 00:11:48]} O-O {[%emt 00:00:21] [%clk 00:13:08]} 12. Bf2
{[%emt 00:00:45] [%clk 00:11:13]} Ba6 {[%emt 00:00:20] [%clk 00:12:59]} 13. Ng5
{[%emt 00:01:18] [%clk 00:10:05]} h6 {[%emt 00:00:18] [%clk 00:12:51]} 14. Nh3
{[%emt 00:00:09] [%clk 00:10:06]} Kh7 {[%emt 00:00:26] [%clk 00:12:35]} 15. Re1
{[%emt 00:00:16] [%clk 00:09:59]} Rae8 {[%emt 00:01:05] [%clk 00:11:40]} 16. d4
{[%emt 00:01:43] [%clk 00:08:27]} fxe4 {[%emt 00:00:14] [%clk 00:11:36]} 17.
Bxe4 {[%emt 00:00:11] [%clk 00:08:26]} e5 {[%emt 00:02:18] [%clk 00:09:28]} 18.
d5 {[%emt 00:01:23] [%clk 00:07:13]} Nd8 {[%emt 00:01:23] [%clk 00:08:15]} 19.
Kg2 {[%emt 00:00:34] [%clk 00:06:49]} Nf5 {[%emt 00:00:30] [%clk 00:07:54]} 20.
Qc2 {[%emt 00:00:50] [%clk 00:06:10]} Bc8 {[%emt 00:00:42] [%clk 00:07:22]} 21.
Nhg1 {[%emt 00:00:09] [%clk 00:06:10]} Nf7 {[%emt 00:00:47] [%clk 00:06:44]} 22.
g4 {[%emt 00:00:52] [%clk 00:05:28]} Ne7 {[%emt 00:00:38] [%clk 00:06:16]} 23.
h3 {[%emt 00:00:03] [%clk 00:05:36]} b5 {[%emt 00:00:13] [%clk 00:06:13]} 24.
Rad1 {[%emt 00:00:23] [%clk 00:05:23]} Kg8 {[%emt 00:00:42] [%clk 00:05:41]} 25.
Bg3 {[%emt 00:02:38] [%clk 00:02:55]} g5 {[%emt 00:02:42] [%clk 00:03:09]} 26.
f5 {[%emt 00:00:09] [%clk 00:02:56]} c4 {[%emt 00:00:19] [%clk 00:03:00]} 27.
Nf3 {[%emt 00:00:27] [%clk 00:02:39]} Bf6 {[%emt 00:00:04] [%clk 00:03:06]} 28.
Rh1 {[%emt 00:00:26] [%clk 00:02:23]} Kg7 {[%emt 00:00:06] [%clk 00:03:10]} 29.
Bf2 {[%emt 00:00:25] [%clk 00:02:08]} Rh8 {[%emt 00:00:27] [%clk 00:02:53]} 30.
Ng3 {[%emt 00:00:03] [%clk 00:02:15]} Kf8 {[%emt 00:00:03] [%clk 00:03:00]} 31.
Nh5 {[%emt 00:00:05] [%clk 00:02:20]} Ng8 {[%emt 00:00:02] [%clk 00:03:08]} 32.
Be3 {[%emt 00:00:07] [%clk 00:02:24]} Qe7 {[%emt 00:00:22] [%clk 00:02:56]} 33.
Qf2 {[%emt 00:00:06] [%clk 00:02:27]} a5 {[%emt 00:00:14] [%clk 00:02:53]} 34.
a3 {[%emt 00:00:02] [%clk 00:02:36]} Bb7 {[%emt 00:00:02] [%clk 00:03:00]} 35.
Bb6 {[%emt 00:00:21] [%clk 00:02:25]} Ra8 {[%emt 00:00:03] [%clk 00:03:07]} 36.
Kg3 {[%emt 00:00:05] [%clk 00:02:30]} Qd7 {[%emt 00:00:25] [%clk 00:02:51]} 37.
Be3 {[%emt 00:00:10] [%clk 00:02:30]} Bd8 {[%emt 00:00:29] [%clk 00:02:32]} 38.
Bb6 {[%emt 00:00:13] [%clk 00:02:28]} Nf6 {[%emt 00:00:10] [%clk 00:02:31]} 39.
Nxf6 {[%emt 00:00:06] [%clk 00:02:33]} Bxf6 {[%emt 00:00:02] [%clk 00:02:39]}
40. Qd2 {[%emt 00:00:21] [%clk 00:02:22]} Ke7 {[%emt 00:00:08] [%clk 00:02:40]}
41. Be3 {[%emt 00:00:04] [%clk 00:02:29]} Rag8 {[%emt 00:00:06] [%clk 00:02:44]}
42. h4 {[%emt 00:00:29] [%clk 00:02:10]} gxh4+ {[%emt 00:01:17] [%clk 00:01:37]}
43. Nxh4 {[%emt 00:00:03] [%clk 00:02:18]} Ng5 {[%emt 00:00:01] [%clk 00:01:45]}
44. Qg2 {[%emt 00:00:15] [%clk 00:02:13]} h5 {[%emt 00:00:25] [%clk 00:01:31]}
45. Bxg5 {[%emt 00:00:43] [%clk 00:01:40]} Rxg5 {[%emt 00:00:05] [%clk
00:01:35]} 46. Ng6+ {[%emt 00:00:07] [%clk 00:01:43]} Ke8 {[%emt 00:00:02] [%clk
00:01:44]} 47. Rh4 {[%emt 00:01:10] [%clk 00:00:42]} Rxg6 {[%emt 00:00:09] [%clk
00:01:46]} 48. fxg6 {[%emt 00:00:04] [%clk 00:00:48]} Bxh4+ {[%emt 00:00:03]
[%clk 00:01:53]} 49. Kxh4 {[%emt 00:00:03] [%clk 00:00:56]} hxg4+ {[%emt
00:00:01] [%clk 00:02:01]} 50. Kg3 {[%emt 00:00:07] [%clk 00:00:59]} Rh3+ {[%emt
00:00:45] [%clk 00:01:25]} 51. Kf2 {[%emt 00:00:02] [%clk 00:01:08]} Bc8 {[%clk
00:01:35]} 52. Rh1 {[%emt 00:00:10] [%clk 00:01:08]} Qa7+ {[%emt 00:00:01] [%clk
00:01:43]} 53. Ke2 {[%emt 00:00:04] [%clk 00:01:14]} Qe3+ {[%emt 00:00:12] [%clk
00:01:41]} 54. Kd1 {[%emt 00:00:01] [%clk 00:01:23]} g3 {[%emt 00:00:36] [%clk
00:01:15]} 55. Rxh3 {[%emt 00:00:20] [%clk 00:01:13]} Bg4+ {[%emt 00:00:03]
[%clk 00:01:22]} 56. Kc2 {[%emt 00:00:07] [%clk 00:01:15]} Bxh3 {[%emt 00:00:02]
[%clk 00:01:30]} 57. Qxh3 {[%emt 00:00:02] [%clk 00:01:24]} Qxe4+ {[%emt
00:00:02] [%clk 00:01:39]} 58. Kc1 {[%emt 00:00:05] [%clk 00:01:29]} Qxg6 {[%emt
00:00:02] [%clk 00:01:47]} 0-1

[Site "Europe Echecs"]

[Event "Championnat d'Europe Rapide"]
[Date "2024.12.07"]
[White "Stojanovski, Dejan"]
[Black "Sramek, Ondrej"]
[WhiteElo "2407"]
[BlackElo "1924"]
[Round "1.45"]
[Result "1-0"]
[TimeControl "900+10"]

1. e4 {[%emt 00:00:02] [%clk 00:15:17]} e5 {[%emt 00:00:03] [%clk 00:15:19]} 2.
Nf3 {[%clk 00:15:26]} Nc6 {[%emt 00:00:01] [%clk 00:15:28]} 3. Bb5 {[%emt
00:00:02] [%clk 00:15:33]} a6 {[%emt 00:00:04] [%clk 00:15:36]} 4. Bxc6 {[%clk
00:15:42]} dxc6 {[%clk 00:15:45]} 5. Nc3 {[%emt 00:00:02] [%clk 00:15:50]} f6
{[%emt 00:00:18] [%clk 00:15:38]} 6. d4 {[%emt 00:00:02] [%clk 00:15:58]} exd4
{[%emt 00:00:05] [%clk 00:15:43]} 7. Nxd4 {[%emt 00:00:01] [%clk 00:16:06]} c5
{[%emt 00:00:25] [%clk 00:15:28]} 8. Nde2 {[%emt 00:00:01] [%clk 00:16:14]}
Qxd1+ {[%emt 00:00:04] [%clk 00:15:35]} 9. Nxd1 {[%emt 00:00:02] [%clk
00:16:22]} Bd6 {[%emt 00:00:11] [%clk 00:15:34]} 10. Bf4 {[%emt 00:00:03] [%clk
00:16:29]} Ne7 {[%emt 00:00:15] [%clk 00:15:29]} 11. Ne3 {[%emt 00:00:03] [%clk
00:16:36]} Ng6 {[%emt 00:00:38] [%clk 00:15:02]} 12. Bxd6 {[%emt 00:00:09] [%clk
00:16:38]} cxd6 {[%emt 00:00:01] [%clk 00:15:10]} 13. O-O-O {[%emt 00:00:02]
[%clk 00:16:45]} O-O {[%emt 00:01:33] [%clk 00:13:48]} 14. Rxd6 {[%emt 00:00:19]
[%clk 00:16:36]} Re8 {[%emt 00:00:36] [%clk 00:13:23]} 15. Nc3 {[%emt 00:00:36]
[%clk 00:16:09]} b5 {[%emt 00:00:19] [%clk 00:13:15]} 16. Rhd1 {[%emt 00:01:12]
[%clk 00:15:06]} Bb7 {[%emt 00:00:11] [%clk 00:13:14]} 17. f3 {[%emt 00:00:17]
[%clk 00:14:59]} Ne5 {[%emt 00:00:09] [%clk 00:13:15]} 18. b3 {[%emt 00:01:41]
[%clk 00:13:28]} c4 {[%emt 00:04:50] [%clk 00:08:35]} 19. Rb6 {[%emt 00:01:06]
[%clk 00:12:32]} Re7 {[%emt 00:00:58] [%clk 00:07:48]} 20. b4 {[%emt 00:00:51]
[%clk 00:11:51]} Kf8 {[%emt 00:03:25] [%clk 00:04:33]} 21. a3 {[%emt 00:00:08]
[%clk 00:11:53]} Rc7 {[%emt 00:00:14] [%clk 00:04:28]} 22. Rbd6 {[%emt 00:01:06]
[%clk 00:10:56]} Bc6 {[%emt 00:00:51] [%clk 00:03:47]} 23. Rd8+ {[%emt 00:00:17]
[%clk 00:10:49]} Kf7 {[%emt 00:00:52] [%clk 00:03:06]} 24. Rxa8 {[%emt 00:00:21]
[%clk 00:10:39]} Bxa8 {[%emt 00:00:02] [%clk 00:03:15]} 25. Rd6 {[%emt 00:00:16]
[%clk 00:10:32]} Bb7 {[%emt 00:00:20] [%clk 00:03:05]} 26. f4 {[%emt 00:00:32]
[%clk 00:10:09]} Ng6 {[%emt 00:00:53] [%clk 00:02:23]} 27. Ned5 {[%emt 00:00:47]
[%clk 00:09:32]} Bxd5 {[%emt 00:00:09] [%clk 00:02:24]} 28. Nxd5 {[%emt
00:00:01] [%clk 00:09:40]} Ra7 {[%emt 00:00:01] [%clk 00:02:32]} 29. Rc6 {[%emt
00:00:21] [%clk 00:09:30]} Ke8 {[%emt 00:01:33] [%clk 00:01:08]} 30. Kd2 {[%emt
00:02:12] [%clk 00:07:28]} Kd7 {[%emt 00:00:15] [%clk 00:01:04]} 31. Rb6 {[%clk
00:07:37]} Nh4 {[%emt 00:00:21] [%clk 00:00:54]} 32. Ne3 {[%emt 00:01:43] [%clk
00:06:04]} Kc7 {[%emt 00:00:35] [%clk 00:00:28]} 33. Re6 {[%emt 00:00:01] [%clk
00:06:13]} Kd7 {[%emt 00:00:01] [%clk 00:00:37]} 34. f5 {[%emt 00:00:10] [%clk
00:06:13]} a5 {[%emt 00:00:15] [%clk 00:00:33]} 35. Rb6 {[%emt 00:00:04] [%clk
00:06:18]} axb4 {[%emt 00:00:04] [%clk 00:00:39]} 36. axb4 {[%emt 00:00:01]
[%clk 00:06:27]} Ke8 {[%emt 00:00:27] [%clk 00:00:22]} 37. Rxb5 {[%emt 00:00:04]
[%clk 00:06:33]} Re7 {[%emt 00:00:02] [%clk 00:00:30]} 38. Nxc4 {[%emt 00:00:26]
[%clk 00:06:17]} Nxg2 {[%emt 00:00:02] [%clk 00:00:39]} 39. Rb8+ {[%emt
00:00:01] [%clk 00:06:25]} Kd7 {[%emt 00:00:06] [%clk 00:00:43]} 40. Rb7+ {[%emt
00:00:02] [%clk 00:06:33]} 1-0

[Site "Europe Echecs"]

[Event "Championnat d'Europe Rapide"]
[Date "2024.12.07"]
[White "Zubic, Aleksandar"]
[Black "Baidetskyi, Valentin"]
[WhiteElo "2008"]
[BlackElo "2519"]
[Round "1.46"]
[Result "0-1"]
[TimeControl "900+10"]

1. e4 {[%emt 00:00:01] [%clk 00:15:18]} e5 {[%emt 00:00:11] [%clk 00:15:11]} 2.
Nf3 {[%clk 00:15:25]} Nc6 {[%emt 00:00:02] [%clk 00:15:20]} 3. Bb5 {[%emt
00:00:03] [%clk 00:15:32]} a6 {[%emt 00:00:03] [%clk 00:15:27]} 4. Ba4 {[%emt
00:00:02] [%clk 00:15:40]} Nge7 {[%emt 00:00:05] [%clk 00:15:33]} 5. O-O {[%emt
00:00:12] [%clk 00:15:37]} Ng6 {[%emt 00:00:05] [%clk 00:15:38]} 6. d4 {[%emt
00:00:23] [%clk 00:15:25]} b5 {[%emt 00:00:51] [%clk 00:14:57]} 7. Bb3 {[%emt
00:00:06] [%clk 00:15:29]} exd4 {[%emt 00:00:04] [%clk 00:15:03]} 8. Nxd4 {[%emt
00:00:07] [%clk 00:15:32]} Nxd4 {[%emt 00:00:06] [%clk 00:15:07]} 9. Qxd4 {[%emt
00:00:06] [%clk 00:15:36]} Bb7 {[%emt 00:00:03] [%clk 00:15:14]} 10. c4 {[%emt
00:01:47] [%clk 00:13:59]} Qf6 {[%emt 00:01:07] [%clk 00:14:18]} 11. Qxf6 {[%emt
00:02:21] [%clk 00:11:48]} gxf6 {[%emt 00:00:02] [%clk 00:14:26]} 12. Nc3 {[%emt
00:00:17] [%clk 00:11:40]} c6 {[%emt 00:00:03] [%clk 00:14:33]} 13. Be3 {[%emt
00:00:28] [%clk 00:11:22]} Ne5 {[%emt 00:00:24] [%clk 00:14:20]} 14. c5 {[%emt
00:01:20] [%clk 00:10:13]} Nd3 {[%emt 00:00:17] [%clk 00:14:12]} 15. Bd4 {[%emt
00:00:31] [%clk 00:09:52]} Be7 {[%emt 00:00:51] [%clk 00:13:31]} 16. Rad1 {[%emt
00:01:41] [%clk 00:08:21]} Nxc5 {[%emt 00:00:06] [%clk 00:13:35]} 17. e5 {[%emt
00:00:38] [%clk 00:07:53]} Nxb3 {[%emt 00:00:16] [%clk 00:13:29]} 18. axb3
{[%emt 00:00:02] [%clk 00:08:01]} c5 {[%emt 00:00:08] [%clk 00:13:31]} 19. Be3
{[%emt 00:00:42] [%clk 00:07:29]} fxe5 {[%emt 00:00:02] [%clk 00:13:39]} 20. Nd5
{[%emt 00:00:17] [%clk 00:07:22]} Bxd5 {[%emt 00:00:05] [%clk 00:13:44]} 21.
Rxd5 {[%emt 00:00:01] [%clk 00:07:31]} d6 {[%emt 00:00:02] [%clk 00:13:53]} 22.
f4 {[%emt 00:00:18] [%clk 00:07:22]} f6 {[%emt 00:00:02] [%clk 00:14:01]} 23. b4
{[%emt 00:01:20] [%clk 00:06:12]} cxb4 {[%emt 00:00:11] [%clk 00:14:00]} 24. Ra1
{[%emt 00:01:03] [%clk 00:05:20]} Kd7 {[%emt 00:00:03] [%clk 00:14:08]} 25. Bd2
{[%emt 00:00:07] [%clk 00:05:23]} Ke6 {[%emt 00:00:08] [%clk 00:14:10]} 26. Rd3
{[%emt 00:00:04] [%clk 00:05:29]} d5 {[%emt 00:00:15] [%clk 00:14:04]} 27. f5+
{[%emt 00:00:19] [%clk 00:05:20]} Kxf5 {[%emt 00:00:02] [%clk 00:14:13]} 28.
Rxd5 {[%emt 00:00:01] [%clk 00:05:29]} Rhd8 {[%emt 00:00:02] [%clk 00:14:21]}
29. Rxd8 {[%emt 00:00:04] [%clk 00:05:36]} Rxd8 {[%emt 00:00:02] [%clk
00:14:29]} 30. Be3 {[%emt 00:00:36] [%clk 00:05:09]} Rd3 {[%emt 00:01:06] [%clk
00:13:33]} 31. Kf2 {[%emt 00:00:29] [%clk 00:04:51]} Ke4 {[%emt 00:00:01] [%clk
00:13:41]} 32. Bh6 {[%emt 00:00:21] [%clk 00:04:39]} Bc5+ {[%emt 00:00:28] [%clk
00:13:24]} 33. Ke2 {[%emt 00:00:09] [%clk 00:04:40]} Be3 {[%emt 00:00:02] [%clk
00:13:32]} 34. Bxe3 {[%emt 00:00:23] [%clk 00:04:27]} Rxe3+ {[%emt 00:00:02]
[%clk 00:13:40]} 35. Kd2 {[%emt 00:00:04] [%clk 00:04:33]} Rd3+ {[%emt 00:00:02]
[%clk 00:13:48]} 36. Kc2 {[%emt 00:00:08] [%clk 00:04:35]} b3+ {[%emt 00:00:02]
[%clk 00:13:57]} 37. Kc1 {[%emt 00:00:12] [%clk 00:04:32]} Ke3 {[%emt 00:00:02]
[%clk 00:14:05]} 0-1

[Site "Europe Echecs"]

[Event "Championnat d'Europe Rapide"]
[Date "2024.12.07"]
[White "Dragnev, Valentin"]
[Black "Markovski, Velo"]
[WhiteElo "2563"]
[BlackElo "1945"]
[Round "1.47"]
[Result "1-0"]
[TimeControl "900+10"]

1. e4 {[%emt 00:00:04] [%clk 00:15:15]} e6 {[%emt 00:07:28] [%clk 00:07:52]} 2.
d4 {[%emt 00:00:05] [%clk 00:15:20]} d5 {[%emt 00:00:02] [%clk 00:08:01]} 3. Nd2
{[%emt 00:00:03] [%clk 00:15:27]} c5 {[%emt 00:00:09] [%clk 00:08:02]} 4. Ngf3
{[%emt 00:00:06] [%clk 00:15:31]} cxd4 {[%emt 00:00:13] [%clk 00:08:00]} 5. exd5
{[%emt 00:00:19] [%clk 00:15:22]} exd5 {[%emt 00:00:02] [%clk 00:08:08]} 6. Nxd4
{[%emt 00:00:16] [%clk 00:15:16]} Nf6 {[%emt 00:00:06] [%clk 00:08:11]} 7. Bb5+
{[%emt 00:00:19] [%clk 00:15:07]} Bd7 {[%emt 00:00:06] [%clk 00:08:15]} 8. Bxd7+
{[%emt 00:00:05] [%clk 00:15:12]} Qxd7 {[%emt 00:00:22] [%clk 00:08:03]} 9. O-O
{[%emt 00:00:12] [%clk 00:15:09]} Be7 {[%clk 00:08:13]} 10. Re1 {[%emt 00:00:47]
[%clk 00:14:32]} O-O {[%emt 00:00:13] [%clk 00:08:10]} 11. N2f3 {[%emt 00:00:02]
[%clk 00:14:41]} Nc6 {[%emt 00:00:44] [%clk 00:07:36]} 12. Nxc6 {[%emt 00:00:03]
[%clk 00:14:47]} bxc6 {[%emt 00:00:02] [%clk 00:07:45]} 13. Ne5 {[%emt 00:00:53]
[%clk 00:14:04]} Qc7 {[%emt 00:00:30] [%clk 00:07:24]} 14. Bg5 {[%emt 00:00:45]
[%clk 00:13:28]} Bb4 {[%emt 00:03:11] [%clk 00:04:24]} 15. Bxf6 {[%emt 00:01:22]
[%clk 00:12:16]} gxf6 {[%emt 00:00:59] [%clk 00:03:36]} 16. Qg4+ {[%emt
00:03:21] [%clk 00:09:05]} Kh8 {[%emt 00:00:03] [%clk 00:03:43]} 17. Nxf7+
{[%emt 00:00:03] [%clk 00:09:12]} Rxf7 {[%emt 00:00:06] [%clk 00:03:47]} 18.
Qxb4 {[%emt 00:00:02] [%clk 00:09:20]} c5 {[%emt 00:01:21] [%clk 00:02:36]} 19.
Qd2 {[%emt 00:00:26] [%clk 00:09:03]} Qd6 {[%emt 00:00:52] [%clk 00:01:55]} 20.
Re2 {[%emt 00:00:17] [%clk 00:08:56]} Rg8 {[%emt 00:01:04] [%clk 00:01:01]} 21.
Rae1 {[%emt 00:00:07] [%clk 00:08:59]} d4 {[%emt 00:00:02] [%clk 00:01:10]} 22.
g3 {[%emt 00:00:12] [%clk 00:08:57]} Qd5 {[%emt 00:00:08] [%clk 00:01:12]} 23.
b3 {[%emt 00:00:37] [%clk 00:08:29]} Qf5 {[%emt 00:00:32] [%clk 00:00:50]} 24.
Qd3 {[%emt 00:00:38] [%clk 00:08:02]} Qh3 {[%emt 00:00:35] [%clk 00:00:25]} 25.
Qc4 {[%emt 00:00:54] [%clk 00:07:18]} Rc7 {[%emt 00:00:14] [%clk 00:00:21]} 26.
Re8 {[%emt 00:02:02] [%clk 00:05:26]} Qg4 {[%emt 00:00:22] [%clk 00:00:00]} 1-0

[Site "Europe Echecs"]

[Event "Championnat d'Europe Rapide"]
[Date "2024.12.07"]
[White "Stamenkovic, Lazar"]
[Black "Beerdsen, Thomas"]
[WhiteElo "1978"]
[BlackElo "2502"]
[Round "1.48"]
[Result "0-1"]
[TimeControl "900+10"]

1. e4 {[%emt 00:00:05] [%clk 00:15:16]} e5 {[%emt 00:02:39] [%clk 00:12:41]} 2.
Nf3 {[%emt 00:00:29] [%clk 00:14:56]} Nc6 {[%emt 00:00:07] [%clk 00:12:44]} 3.
Bc4 {[%emt 00:00:15] [%clk 00:14:51]} Nf6 {[%emt 00:00:03] [%clk 00:12:52]} 4.
Nc3 {[%emt 00:00:13] [%clk 00:14:47]} Nxe4 {[%emt 00:00:10] [%clk 00:12:53]} 5.
Nxe4 {[%emt 00:00:49] [%clk 00:14:08]} d5 {[%emt 00:00:01] [%clk 00:13:01]} 6.
Bxd5 {[%emt 00:02:02] [%clk 00:12:16]} Qxd5 {[%emt 00:00:02] [%clk 00:13:09]} 7.
Nc3 {[%emt 00:00:07] [%clk 00:12:19]} Qd8 {[%emt 00:00:59] [%clk 00:12:19]} 8.
h3 {[%emt 00:00:59] [%clk 00:11:30]} Bc5 {[%emt 00:00:26] [%clk 00:12:02]} 9. d3
{[%emt 00:01:05] [%clk 00:10:35]} O-O {[%emt 00:00:06] [%clk 00:12:05]} 10. O-O
{[%emt 00:00:24] [%clk 00:10:21]} f5 {[%emt 00:00:20] [%clk 00:11:55]} 11. Be3
{[%emt 00:00:37] [%clk 00:09:55]} Bd6 {[%emt 00:00:02] [%clk 00:12:02]} 12. Nb5
{[%emt 00:03:33] [%clk 00:06:33]} Qe8 {[%emt 00:00:42] [%clk 00:11:29]} 13. Nxd6
{[%emt 00:00:31] [%clk 00:06:13]} cxd6 {[%emt 00:00:01] [%clk 00:11:37]} 14. Ne1
{[%emt 00:01:30] [%clk 00:04:53]} f4 {[%emt 00:00:18] [%clk 00:11:30]} 15. Bc1
{[%emt 00:00:06] [%clk 00:04:56]} Qg6 {[%emt 00:00:10] [%clk 00:11:30]} 16. Kh1
{[%emt 00:00:13] [%clk 00:04:53]} Rf5 {[%emt 00:00:21] [%clk 00:11:19]} 17. c3
{[%emt 00:01:05] [%clk 00:03:59]} Rh5 {[%emt 00:00:05] [%clk 00:11:23]} 18. Kh2
{[%emt 00:00:27] [%clk 00:03:41]} Be6 {[%emt 00:00:15] [%clk 00:11:18]} 19. d4
{[%emt 00:01:01] [%clk 00:02:51]} Rf8 {[%emt 00:00:17] [%clk 00:11:10]} 20. d5
{[%emt 00:00:22] [%clk 00:02:40]} Bg4 {[%emt 00:00:49] [%clk 00:10:31]} 21. Qc2
{[%emt 00:00:49] [%clk 00:02:02]} Bf5 {[%emt 00:00:04] [%clk 00:10:37]} 22. Qb3
{[%emt 00:00:37] [%clk 00:01:35]} Ne7 {[%emt 00:00:03] [%clk 00:10:44]} 23. Rg1
{[%emt 00:00:17] [%clk 00:01:29]} Be4 {[%emt 00:00:27] [%clk 00:10:26]} 24. c4
{[%emt 00:00:21]} Nf5 {[%clk 00:10:33]} 25. g4 {[%emt 00:00:31] [%clk 00:00:57]}
fxg3+ {[%emt 00:00:06] [%clk 00:10:39]} 26. fxg3 {[%emt 00:00:06] [%clk
00:01:01]} Rxh3+ {[%emt 00:00:02] [%clk 00:10:47]} 0-1

[Site "Europe Echecs"]

[Event "Championnat d'Europe Rapide"]
[Date "2024.12.07"]
[White "Janik, Igor"]
[Black "Masha, Rexhep"]
[WhiteElo "2515"]
[BlackElo "1909"]
[Round "1.49"]
[Result "1-0"]
[TimeControl "900+10"]

1. e4 {[%clk 00:15:08]} d5 {[%clk 00:15:20]} 2. exd5 {[%emt 00:00:12] [%clk
00:15:16]} Qxd5 {[%emt 00:00:01] [%clk 00:15:28]} 3. Nf3 {[%emt 00:00:02] [%clk
00:15:24]} Qa5 {[%emt 00:00:02] [%clk 00:15:36]} 4. Bc4 {[%emt 00:00:05] [%clk
00:15:29]} c6 {[%emt 00:00:06] [%clk 00:15:39]} 5. Qe2 {[%emt 00:00:13] [%clk
00:15:26]} Nf6 {[%emt 00:00:50] [%clk 00:14:59]} 6. Ne5 {[%emt 00:00:47] [%clk
00:14:49]} e6 {[%emt 00:00:09] [%clk 00:15:00]} 7. O-O {[%emt 00:00:03] [%clk
00:14:55]} Bd6 {[%emt 00:00:14] [%clk 00:14:57]} 8. d4 {[%emt 00:00:03] [%clk
00:15:02]} O-O {[%emt 00:00:38] [%clk 00:14:29]} 9. Nc3 {[%emt 00:00:24] [%clk
00:14:48]} Nbd7 {[%emt 00:00:16] [%clk 00:14:24]} 10. f4 {[%emt 00:02:20] [%clk
00:12:38]} Qc7 {[%emt 00:00:28] [%clk 00:14:07]} 11. Bd2 {[%emt 00:00:21] [%clk
00:12:27]} a6 {[%emt 00:00:17] [%clk 00:13:59]} 12. Rae1 {[%emt 00:00:47] [%clk
00:11:50]} b5 {[%emt 00:01:03] [%clk 00:13:06]} 13. Bd3 {[%emt 00:00:12] [%clk
00:11:47]} c5 {[%emt 00:00:22] [%clk 00:12:55]} 14. Be3 {[%emt 00:03:55] [%clk
00:08:02]} Bb7 {[%emt 00:00:31] [%clk 00:12:34]} 15. Qf2 {[%emt 00:00:02] [%clk
00:08:11]} cxd4 {[%emt 00:01:47] [%clk 00:10:57]} 16. Bxd4 {[%emt 00:00:05]
[%clk 00:08:15]} Bc5 {[%emt 00:00:13] [%clk 00:10:55]} 17. Nxd7 {[%emt 00:01:30]
[%clk 00:06:55]} Nxd7 {[%emt 00:00:22] [%clk 00:10:42]} 18. Ne4 {[%emt 00:00:58]
[%clk 00:06:07]} Bxd4 {[%emt 00:00:25] [%clk 00:10:27]} 19. Qxd4 {[%emt
00:00:02] [%clk 00:06:15]} Rad8 {[%emt 00:00:47] [%clk 00:09:51]} 20. Qe3 {[%emt
00:00:49] [%clk 00:05:36]} Qb6 {[%emt 00:00:41] [%clk 00:09:17]} 21. Qxb6 {[%emt
00:00:21] [%clk 00:05:28]} Nxb6 {[%emt 00:00:02] [%clk 00:09:26]} 22. Nc5 {[%emt
00:00:01] [%clk 00:05:37]} Rb8 {[%emt 00:00:53] [%clk 00:08:42]} 23. f5 {[%emt
00:00:02] [%clk 00:05:46]} exf5 {[%emt 00:00:35] [%clk 00:08:17]} 24. Rxf5
{[%emt 00:00:04] [%clk 00:05:51]} Bc8 {[%emt 00:00:37] [%clk 00:07:50]} 25. Rf4
{[%emt 00:00:38] [%clk 00:05:24]} Nd5 {[%emt 00:00:09] [%clk 00:07:51]} 26. Rd4
{[%emt 00:00:03] [%clk 00:05:30]} Nf6 {[%emt 00:00:13] [%clk 00:07:48]} 27. Rd6
{[%emt 00:01:30] [%clk 00:04:11]} a5 {[%emt 00:00:25] [%clk 00:07:34]} 28. h3
{[%emt 00:00:02] [%clk 00:04:18]} h6 {[%emt 00:00:08] [%clk 00:07:35]} 29. Re5
{[%emt 00:00:08] [%clk 00:04:20]} Ne8 {[%emt 00:04:04] [%clk 00:03:42]} 30. Rc6
{[%emt 00:00:12] [%clk 00:04:18]} Nf6 {[%emt 00:00:11] [%clk 00:03:41]} 31. Na6
{[%emt 00:01:33] [%clk 00:02:54]} Bxa6 {[%emt 00:00:33] [%clk 00:03:19]} 32.
Rxa6 {[%clk 00:03:03]} b4 {[%emt 00:00:29] [%clk 00:02:59]} 33. Raxa5 {[%clk
00:03:13]} Rb7 {[%emt 00:00:21] [%clk 00:02:48]} 34. Reb5 {[%emt 00:00:07] [%clk
00:03:16]} Re7 {[%emt 00:00:38] [%clk 00:02:20]} 35. Rxb4 {[%emt 00:00:01] [%clk
00:03:25]} Re1+ {[%emt 00:00:03] [%clk 00:02:27]} 36. Kf2 {[%emt 00:00:01] [%clk
00:03:34]} Rfe8 {[%emt 00:00:01] [%clk 00:02:35]} 37. Rab5 {[%emt 00:00:15]
[%clk 00:03:29]} g6 {[%emt 00:00:21] [%clk 00:02:24]} 38. Rb8 {[%emt 00:00:03]
[%clk 00:03:35]} Nd5 {[%emt 00:00:16] [%clk 00:02:18]} 39. Rxe8+ {[%emt
00:00:02] [%clk 00:03:43]} Rxe8 {[%emt 00:00:02] [%clk 00:02:26]} 40. Rd4 {[%emt
00:00:01] [%clk 00:03:52]} Re5 {[%emt 00:00:07] [%clk 00:02:29]} 41. a4 {[%emt
00:00:08] [%clk 00:03:55]} f5 {[%emt 00:00:06] [%clk 00:02:32]} 42. Bc4 {[%emt
00:00:02] [%clk 00:04:03]} 1-0

[Site "Europe Echecs"]